[Event "*** Titled Tuesday 3|2 Blitz"]
[Site "Chess.com"]
[Date "2016.03.01"]
[Round "6"]
[White "chessdude"]
[Black "PowerThinking2650"]
[Result "1-0"]
[WhiteElo "2370"]
[BlackElo "2151"]
[TimeControl "180+2"]
[EndTime "12:45:06 PST"]
[Termination "chessdude won by resignation"]

1. e4 {[%clk 0:01:09.6]} 1... e5 {[%clk 0:02:58.7]} 2. Nf3 {[%clk 0:01:10.8]}
2... Nc6 {[%clk 0:02:59.6]} 3. Bb5 {[%clk 0:01:12.4]} 3... a6 {[%clk 0:03:00.5]}
4. Bxc6 {[%clk 0:01:13.9]} 4... dxc6 {[%clk 0:03:00.5]} 5. O-O {[%clk
0:01:15.5]} 5... f6 {[%clk 0:03:01.6]} 6. d4 {[%clk 0:01:16.7]} 6... exd4 {[%clk
0:03:02.6]} 7. Nxd4 {[%clk 0:01:18.4]} 7... c5 {[%clk 0:03:03.9]} 8. Nb3 {[%clk
0:01:19.4]} 8... Qxd1 {[%clk 0:03:04.3]} 9. Rxd1 {[%clk 0:01:20.7]} 9... Bd7
{[%clk 0:03:05.5]} 10. Nc3 {[%clk 0:01:20.8]} 10... O-O-O {[%clk 0:03:00]} 11.
Be3 {[%clk 0:01:22.1]} 11... b6 {[%clk 0:02:59.7]} 12. a4 {[%clk 0:01:23.1]}
12... a5 {[%clk 0:02:58.7]} 13. Nd2 {[%clk 0:01:09.3]} 13... Bc6 {[%clk
0:02:42.8]} 14. Nc4 {[%clk 0:01:08.9]} 14... Rxd1+ {[%clk 0:02:38.3]} 15. Rxd1
{[%clk 0:01:09.4]} 15... Ne7 {[%clk 0:02:39]} 16. b3 {[%clk 0:01:08.7]} 16... g6
{[%clk 0:02:35.8]} 17. Nd5 {[%clk 0:01:09.4]} 17... Bxd5 {[%clk 0:02:16.8]} 18.
exd5 {[%clk 0:01:10.4]} 18... Nf5 {[%clk 0:02:17.7]} 19. Bc1 {[%clk 0:01:00]}
19... Nd6 {[%clk 0:01:18.3]} 20. Bb2 {[%clk 0:00:50.8]} 20... Bg7 {[%clk
0:01:07.9]} 21. Nxd6+ {[%clk 0:00:45.8]} 21... cxd6 {[%clk 0:01:08.9]} 22. Re1
{[%clk 0:00:47.4]} 22... Kd7 {[%clk 0:01:09.8]} 23. Kf1 {[%clk 0:00:46.2]} 23...
Re8 {[%clk 0:00:57.5]} 24. Rxe8 {[%clk 0:00:46.4]} 24... Kxe8 {[%clk 0:00:58]}
25. Ke2 {[%clk 0:00:47.7]} 25... Ke7 {[%clk 0:00:57.8]} 26. Kd3 {[%clk
0:00:48.4]} 26... Bh6 {[%clk 0:00:51.9]} 27. Kc4 {[%clk 0:00:49.1]} 27... Kd7
{[%clk 0:00:51.2]} 28. Kb5 {[%clk 0:00:49.2]} 28... Kc7 {[%clk 0:00:49.5]} 29.
Bxf6 {[%clk 0:00:48.7]} 29... Bf4 {[%clk 0:00:48.6]} 30. g3 {[%clk 0:00:48.8]}
30... Bd2 {[%clk 0:00:49]} 31. f4 {[%clk 0:00:47.2]} 31... h5 {[%clk 0:00:48.5]}
32. h3 {[%clk 0:00:42.5]} 32... Be1 {[%clk 0:00:47.6]} 33. g4 {[%clk 0:00:42.3]}
33... hxg4 {[%clk 0:00:48.6]} 34. hxg4 {[%clk 0:00:43.3]} 34... Bd2 {[%clk
0:00:48.2]} 35. f5 {[%clk 0:00:44.2]} 35... gxf5 {[%clk 0:00:49.3]} 36. gxf5
{[%clk 0:00:45.1]} 36... Bf4 {[%clk 0:00:47.3]} 37. Bg7 {[%clk 0:00:43.1]} 1-0

[Event "*** Titled Tuesday 3|2 Blitz"]
[Site "Chess.com"]
[Date "2016.03.01"]
[Round "6"]
[White "FairChess_on_YouTube"]
[Black "Yaacovn"]
[Result "1-0"]
[WhiteElo "2751"]
[BlackElo "2633"]
[TimeControl "180+2"]
[EndTime "12:45:16 PST"]
[Termination "FairChess_on_YouTube won by resignation"]

1. d4 {[%clk 0:03:01.9]} 1... Nf6 {[%clk 0:02:57.2]} 2. c4 {[%clk 0:03:02.9]}
2... e5 {[%clk 0:02:58.7]} 3. dxe5 {[%clk 0:03:03.3]} 3... Ne4 {[%clk
0:03:00.3]} 4. Nf3 {[%clk 0:02:58.3]} 4... Nc6 {[%clk 0:03:01.3]} 5. Nbd2 {[%clk
0:02:55.5]} 5... Bb4 {[%clk 0:03:02.2]} 6. g3 {[%clk 0:02:49.9]} 6... O-O {[%clk
0:03:02]} 7. Bg2 {[%clk 0:02:50.9]} 7... Qe7 {[%clk 0:03:03]} 8. O-O {[%clk
0:02:49.1]} 8... Nxd2 {[%clk 0:03:04.3]} 9. Nxd2 {[%clk 0:02:42.7]} 9... Nxe5
{[%clk 0:03:05.2]} 10. b3 {[%clk 0:02:43.4]} 10... Bc3 {[%clk 0:03:02.5]} 11.
Rb1 {[%clk 0:02:43.1]} 11... d6 {[%clk 0:03:03.3]} 12. Ne4 {[%clk 0:02:40.1]}
12... Ba5 {[%clk 0:03:03.2]} 13. Bg5 {[%clk 0:02:29.9]} 13... Qe6 {[%clk
0:02:48.3]} 14. Bd2 {[%clk 0:02:16.9]} 14... Bb6 {[%clk 0:02:45.4]} 15. Nc3
{[%clk 0:02:15.3]} 15... c6 {[%clk 0:02:42.2]} 16. Bf4 {[%clk 0:02:10.2]} 16...
Qg6 {[%clk 0:02:37]} 17. Qd2 {[%clk 0:02:03.7]} 17... Bf5 {[%clk 0:02:35.6]} 18.
Rbd1 {[%clk 0:02:04.1]} 18... Rad8 {[%clk 0:02:35.8]} 19. Be3 {[%clk 0:02:04]}
19... Qf6 {[%clk 0:02:11.5]} 20. Bd4 {[%clk 0:01:59.3]} 20... Bxd4 {[%clk
0:02:04.8]} 21. Qxd4 {[%clk 0:02:01.2]} 21... a6 {[%clk 0:02:04.5]} 22. f4
{[%clk 0:01:56.9]} 22... Ng4 {[%clk 0:02:02.7]} 23. e4 {[%clk 0:01:50.1]} 23...
Bc8 {[%clk 0:01:56.9]} 24. Qxf6 {[%clk 0:01:33.2]} 24... Nxf6 {[%clk 0:01:57.7]}
25. Rd4 {[%clk 0:01:34.5]} 25... b5 {[%clk 0:01:52.7]} 26. Rfd1 {[%clk
0:01:33.3]} 26... Bg4 {[%clk 0:01:50.8]} 27. R1d2 {[%clk 0:01:32.4]} 27... bxc4
{[%clk 0:00:53.6]} 28. bxc4 {[%clk 0:01:32.5]} 28... Be6 {[%clk 0:00:49.3]} 29.
e5 {[%clk 0:01:27.5]} 29... c5 {[%clk 0:00:43.1]} 30. Rxd6 {[%clk 0:01:26]}
30... Rxd6 {[%clk 0:00:44.4]} 31. Rxd6 {[%clk 0:01:27.4]} 31... Ng4 {[%clk
0:00:44.4]} 32. Bd5 {[%clk 0:01:23]} 32... Ne3 {[%clk 0:00:41.9]} 33. Bxe6
{[%clk 0:01:18.4]} 33... fxe6 {[%clk 0:00:43.8]} 34. Rxe6 {[%clk 0:01:18.9]}
34... Rb8 {[%clk 0:00:44.4]} 35. Rxa6 {[%clk 0:01:16.9]} 35... Rb2 {[%clk
0:00:42.5]} 36. Nd5 {[%clk 0:01:13.5]} 36... Nxc4 {[%clk 0:00:20.9]} 37. e6
{[%clk 0:01:11.2]} 37... g6 {[%clk 0:00:15.8]} 38. e7 {[%clk 0:01:04.2]} 38...
Re2 {[%clk 0:00:13.7]} 39. Nf6+ {[%clk 0:01:04]} 1-0

[Event "*** Titled Tuesday 3|2 Blitz"]
[Site "Chess.com"]
[Date "2016.03.01"]
[Round "6"]
[White "davidarenas1224"]
[Black "KamilPlichta"]
[Result "1-0"]
[WhiteElo "2125"]
[BlackElo "2396"]
[TimeControl "180+2"]
[EndTime "12:45:16 PST"]
[Termination "davidarenas1224 won by resignation"]

1. e4 {[%clk 0:03:01.9]} 1... g6 {[%clk 0:03:00.8]} 2. d4 {[%clk 0:03:02.2]}
2... Bg7 {[%clk 0:03:02.2]} 3. Nc3 {[%clk 0:03:03.3]} 3... c5 {[%clk 0:03:03.6]}
4. Nf3 {[%clk 0:03:03.9]} 4... Qa5 {[%clk 0:03:04.2]} 5. d5 {[%clk 0:02:23]}
5... Bxc3+ {[%clk 0:03:04.1]} 6. bxc3 {[%clk 0:02:24.9]} 6... Nf6 {[%clk
0:03:04.6]} 7. Qd3 {[%clk 0:02:03.6]} 7... Nxe4 {[%clk 0:03:01]} 8. Bb2 {[%clk
0:01:59.9]} 8... Nf6 {[%clk 0:02:59.3]} 9. Be2 {[%clk 0:01:42.2]} 9... d6 {[%clk
0:03:00.1]} 10. O-O {[%clk 0:01:41.1]} 10... O-O {[%clk 0:03:00.9]} 11. c4
{[%clk 0:01:42]} 11... Bf5 {[%clk 0:02:57.6]} 12. Qb3 {[%clk 0:01:28.1]} 12...
Qb6 {[%clk 0:02:54.8]} 13. Qc3 {[%clk 0:01:24.2]} 13... Nbd7 {[%clk 0:02:52.2]}
14. a3 {[%clk 0:01:20.4]} 14... Qd8 {[%clk 0:02:34.8]} 15. Bd3 {[%clk
0:01:11.2]} 15... Bxd3 {[%clk 0:02:35.3]} 16. cxd3 {[%clk 0:01:08.5]} 16... Nb6
{[%clk 0:02:26.2]} 17. a4 {[%clk 0:01:06.3]} 17... Qd7 {[%clk 0:02:26.8]} 18.
Qb3 {[%clk 0:00:59.4]} 18... Rab8 {[%clk 0:02:22.3]} 19. Rfe1 {[%clk 0:00:58.3]}
19... Rfe8 {[%clk 0:02:23.2]} 20. h3 {[%clk 0:00:55.7]} 20... Na8 {[%clk
0:02:20.2]} 21. Re3 {[%clk 0:00:48.5]} 21... Nc7 {[%clk 0:02:19.7]} 22. Rae1
{[%clk 0:00:48.4]} 22... Nh5 {[%clk 0:02:09.1]} 23. Qc3 {[%clk 0:00:47.8]} 23...
f6 {[%clk 0:02:09.9]} 24. Re4 {[%clk 0:00:30.7]} 24... a6 {[%clk 0:02:09.6]} 25.
Ng5 {[%clk 0:00:30.4]} 25... Ng7 {[%clk 0:02:03.6]} 26. Rh4 {[%clk 0:00:21.3]}
26... h5 {[%clk 0:02:04.1]} 27. g4 {[%clk 0:00:18.9]} 27... b5 {[%clk 0:01:59]}
28. gxh5 {[%clk 0:00:19]} 28... b4 {[%clk 0:02:00.1]} 29. Qd2 {[%clk 0:00:15.8]}
29... fxg5 {[%clk 0:02:01.6]} 30. Qxg5 {[%clk 0:00:15.3]} 30... Qf5 {[%clk
0:02:02.9]} 31. Qh6 {[%clk 0:00:11.6]} 31... e5 {[%clk 0:02:02.7]} 32. dxe6
{[%clk 0:00:11.8]} 32... Ncxe6 {[%clk 0:02:04]} 33. Rxe6 {[%clk 0:00:12.4]}
33... Nxe6 {[%clk 0:01:58.1]} 34. Qh8+ {[%clk 0:00:08.1]} 34... Kf7 {[%clk
0:01:59.2]} 35. Qh7+ {[%clk 0:00:09.1]} 35... Kf8 {[%clk 0:01:47.6]} 36. hxg6
{[%clk 0:00:10.3]} 36... Rb7 {[%clk 0:01:36.4]} 37. Qxb7 {[%clk 0:00:07.3]}
37... Qg5+ {[%clk 0:01:24.1]} 38. Rg4 {[%clk 0:00:07.4]} 38... Qf5 {[%clk
0:01:25.5]} 39. Qh7 {[%clk 0:00:06.2]} 39... Nf4 {[%clk 0:01:24.1]} 40. g7+
{[%clk 0:00:06.1]} 40... Ke7 {[%clk 0:01:25.7]} 41. Qxf5 {[%clk 0:00:07.3]} 1-0

[Event "*** Titled Tuesday 3|2 Blitz"]
[Site "Chess.com"]
[Date "2016.03.01"]
[Round "6"]
[White "evgenyermolaev"]
[Black "SabinoBrunello"]
[Result "0-1"]
[WhiteElo "2052"]
[BlackElo "2468"]
[TimeControl "180+2"]
[EndTime "12:45:42 PST"]
[Termination "SabinoBrunello won on time"]

1. e4 {[%clk 0:02:55.9]} 1... c6 {[%clk 0:03:00.7]} 2. Nf3 {[%clk 0:02:56.7]}
2... d5 {[%clk 0:03:02.6]} 3. Nc3 {[%clk 0:02:57.8]} 3... Bg4 {[%clk 0:03:03.2]}
4. h3 {[%clk 0:02:58.5]} 4... Bxf3 {[%clk 0:03:04.3]} 5. Qxf3 {[%clk 0:02:59]}
5... e6 {[%clk 0:03:06]} 6. Be2 {[%clk 0:02:57.3]} 6... Nd7 {[%clk 0:03:05.5]}
7. d4 {[%clk 0:02:57.8]} 7... dxe4 {[%clk 0:03:06.7]} 8. Nxe4 {[%clk 0:02:58.6]}
8... Ngf6 {[%clk 0:03:08.4]} 9. O-O {[%clk 0:02:57.4]} 9... Nxe4 {[%clk
0:03:07.6]} 10. Qxe4 {[%clk 0:02:58.2]} 10... Nf6 {[%clk 0:03:09.3]} 11. Qd3
{[%clk 0:02:59.1]} 11... Qc7 {[%clk 0:03:10.9]} 12. Bf3 {[%clk 0:02:59.9]} 12...
Rd8 {[%clk 0:03:11.8]} 13. Re1 {[%clk 0:02:38.8]} 13... Be7 {[%clk 0:03:10.9]}
14. g3 {[%clk 0:02:37.1]} 14... O-O {[%clk 0:03:10.7]} 15. Bf4 {[%clk
0:02:35.6]} 15... Qb6 {[%clk 0:03:11.3]} 16. c3 {[%clk 0:02:32.7]} 16... c5
{[%clk 0:03:11.8]} 17. Be5 {[%clk 0:02:29.7]} 17... cxd4 {[%clk 0:03:11.8]} 18.
Bxd4 {[%clk 0:02:24.1]} 18... Bc5 {[%clk 0:03:11.3]} 19. Bxc5 {[%clk 0:02:19.9]}
19... Qxc5 {[%clk 0:03:13.2]} 20. Qe3 {[%clk 0:02:21]} 20... Qxe3 {[%clk
0:03:14.1]} 21. Rxe3 {[%clk 0:02:21.9]} 21... b6 {[%clk 0:03:15.8]} 22. Re2
{[%clk 0:02:14.7]} 22... Rd3 {[%clk 0:03:15.8]} 23. Kg2 {[%clk 0:02:12.3]} 23...
Nd7 {[%clk 0:03:13.8]} 24. Be4 {[%clk 0:02:08.5]} 24... Rd6 {[%clk 0:03:14.2]}
25. Bc2 {[%clk 0:02:07.4]} 25... Rd8 {[%clk 0:03:14.4]} 26. Rd1 {[%clk
0:01:58.4]} 26... Rxd1 {[%clk 0:03:13.8]} 27. Bxd1 {[%clk 0:01:59.5]} 27... Nc5
{[%clk 0:03:15.4]} 28. Bc2 {[%clk 0:02:00.8]} 28... Kf8 {[%clk 0:03:11.6]} 29.
b4 {[%clk 0:01:55]} 29... Nb7 {[%clk 0:03:12.1]} 30. c4 {[%clk 0:01:47.9]} 30...
h6 {[%clk 0:03:12]} 31. Be4 {[%clk 0:01:34.5]} 31... Nd6 {[%clk 0:03:11.8]} 32.
Bd3 {[%clk 0:01:35]} 32... Rc8 {[%clk 0:03:10.5]} 33. Rc2 {[%clk 0:01:35.9]}
33... Ke7 {[%clk 0:03:07.9]} 34. c5 {[%clk 0:01:37.2]} 34... bxc5 {[%clk
0:03:08.5]} 35. bxc5 {[%clk 0:01:38.3]} 35... Nb7 {[%clk 0:03:09.2]} 36. c6
{[%clk 0:01:29]} 36... Nd6 {[%clk 0:03:07.6]} 37. Kf3 {[%clk 0:00:56.7]} 37...
Rc7 {[%clk 0:03:07.4]} 38. Ke3 {[%clk 0:00:57.3]} 38... Nc8 {[%clk 0:03:06.7]}
39. Be4 {[%clk 0:00:55.8]} 39... Nb6 {[%clk 0:03:02.7]} 40. Kd4 {[%clk
0:00:29.2]} 40... Kd6 {[%clk 0:03:01.8]} 41. Bg2 {[%clk 0:00:21.9]} 41... Nc8
{[%clk 0:03:02.1]} 42. Kc4 {[%clk 0:00:19.7]} 42... Nb6+ {[%clk 0:02:43.4]} 43.
Kb5 {[%clk 0:00:20.7]} 43... Nd5 {[%clk 0:02:44.4]} 44. Rc4 {[%clk 0:00:17.2]}
44... Rc8 {[%clk 0:02:40.5]} 45. Ka6 {[%clk 0:00:12.9]} 45... Kc7 {[%clk
0:02:34.8]} 46. Bxd5 {[%clk 0:00:09.9]} 46... exd5 {[%clk 0:02:35.2]} 47. Rf4
{[%clk 0:00:11.4]} 47... Rd8 {[%clk 0:02:20]} 48. Kb5 {[%clk 0:00:09.7]} 48...
f6 {[%clk 0:02:10.2]} 49. Kc5 {[%clk 0:00:09.9]} 49... Rd6 {[%clk 0:02:10.7]}
50. Ra4 {[%clk 0:00:11]} 50... Rxc6+ {[%clk 0:02:09.3]} 51. Kxd5 {[%clk
0:00:12.6]} 51... Rd6+ {[%clk 0:02:10.1]} 52. Kc5 {[%clk 0:00:13.6]} 52... a6
{[%clk 0:02:10.6]} 53. Rd4 {[%clk 0:00:13.1]} 53... Rc6+ {[%clk 0:02:04.9]} 0-1

[Event "*** Titled Tuesday 3|2 Blitz"]
[Site "Chess.com"]
[Date "2016.03.01"]
[Round "6"]
[White "Saitama_Hero"]
[Black "HovmoellerHest"]
[Result "1-0"]
[WhiteElo "2102"]
[BlackElo "2346"]
[TimeControl "180+2"]
[EndTime "12:45:44 PST"]
[Termination "Saitama_Hero won on time"]

1. d4 {[%clk 0:03:01.9]} 1... Nf6 {[%clk 0:03:00.3]} 2. c4 {[%clk 0:03:03.3]}
2... e6 {[%clk 0:03:01.3]} 3. Nc3 {[%clk 0:03:04.7]} 3... Bb4 {[%clk 0:03:02.1]}
4. f3 {[%clk 0:03:06.3]} 4... c5 {[%clk 0:02:52.8]} 5. d5 {[%clk 0:03:06]} 5...
Bxc3+ {[%clk 0:02:51.4]} 6. bxc3 {[%clk 0:03:06.2]} 6... d6 {[%clk 0:02:50.6]}
7. e4 {[%clk 0:03:07.7]} 7... e5 {[%clk 0:02:51.4]} 8. Bd3 {[%clk 0:03:06.4]}
8... O-O {[%clk 0:02:51.9]} 9. Ne2 {[%clk 0:03:07.8]} 9... Nbd7 {[%clk
0:02:50.8]} 10. O-O {[%clk 0:03:05.1]} 10... Re8 {[%clk 0:02:51]} 11. Ng3 {[%clk
0:02:50.5]} 11... Nf8 {[%clk 0:02:51.2]} 12. Nf5 {[%clk 0:02:37.7]} 12... Ng6
{[%clk 0:02:38.1]} 13. g3 {[%clk 0:02:20.5]} 13... Rb8 {[%clk 0:02:31]} 14. a4
{[%clk 0:02:18.5]} 14... b6 {[%clk 0:02:29.6]} 15. Kg2 {[%clk 0:02:11.4]} 15...
Nf8 {[%clk 0:01:57.1]} 16. Qc2 {[%clk 0:02:01.4]} 16... h6 {[%clk 0:01:51]} 17.
h4 {[%clk 0:01:53.1]} 17... Kh7 {[%clk 0:01:36.9]} 18. Be3 {[%clk 0:01:42.3]}
18... h5 {[%clk 0:01:22.4]} 19. Bg5 {[%clk 0:01:37.3]} 19... g6 {[%clk
0:01:19.8]} 20. Ne3 {[%clk 0:01:27.1]} 20... Kg7 {[%clk 0:01:20.9]} 21. f4
{[%clk 0:01:25.6]} 21... N8h7 {[%clk 0:01:19.9]} 22. f5 {[%clk 0:01:23.3]} 22...
Nxg5 {[%clk 0:00:59.8]} 23. hxg5 {[%clk 0:01:23]} 23... Nh7 {[%clk 0:01:00.7]}
24. f6+ {[%clk 0:01:03.8]} 24... Kg8 {[%clk 0:01:00.3]} 25. Qd2 {[%clk 0:00:55]}
25... Nxg5 {[%clk 0:00:50.8]} 26. Ng4 {[%clk 0:00:56.5]} 26... Re6 {[%clk
0:00:07.7]} 27. Nh6+ {[%clk 0:00:54.7]} 27... Kh7 {[%clk 0:00:07.9]} 28. Qxg5
{[%clk 0:00:56.6]} 28... Qf8 {[%clk 0:00:07.5]} 29. Ng4 {[%clk 0:00:54.5]} 29...
Re8 {[%clk 0:00:08]} 30. Ne3 {[%clk 0:00:52.9]} 30... Qh6 {[%clk 0:00:09.1]} 31.
Qxh6+ {[%clk 0:00:52.3]} 31... Kxh6 {[%clk 0:00:11]} 32. a5 {[%clk 0:00:41.5]}
32... Kg5 {[%clk 0:00:11.3]} 33. axb6 {[%clk 0:00:36.8]} 1-0

[Event "*** Titled Tuesday 3|2 Blitz"]
[Site "Chess.com"]
[Date "2016.03.01"]
[Round "6"]
[White "GeorgMeier"]
[Black "dretch"]
[Result "0-1"]
[WhiteElo "2740"]
[BlackElo "2539"]
[TimeControl "180+2"]
[EndTime "12:45:47 PST"]
[Termination "dretch won on time"]

1. Nf3 {[%clk 0:03:01.7]} 1... d5 {[%clk 0:03:01]} 2. g3 {[%clk 0:03:01.9]} 2...
Bg4 {[%clk 0:02:57.4]} 3. Bg2 {[%clk 0:03:03.3]} 3... Nd7 {[%clk 0:02:57.2]} 4.
c4 {[%clk 0:03:04.8]} 4... e6 {[%clk 0:02:58.4]} 5. cxd5 {[%clk 0:03:04.8]} 5...
exd5 {[%clk 0:02:58.6]} 6. h3 {[%clk 0:03:06.5]} 6... Bh5 {[%clk 0:02:57.3]} 7.
O-O {[%clk 0:03:07.1]} 7... Bd6 {[%clk 0:02:56.9]} 8. Nc3 {[%clk 0:03:07.6]}
8... Ne7 {[%clk 0:02:55.9]} 9. d3 {[%clk 0:02:54]} 9... O-O {[%clk 0:02:53.3]}
10. e4 {[%clk 0:02:54.8]} 10... Nb6 {[%clk 0:02:32]} 11. g4 {[%clk 0:02:48.3]}
11... Bg6 {[%clk 0:02:30.4]} 12. e5 {[%clk 0:02:35.6]} 12... Bb4 {[%clk
0:02:30.3]} 13. Ne2 {[%clk 0:02:15.7]} 13... Nc6 {[%clk 0:02:28]} 14. Nf4 {[%clk
0:02:09.6]} 14... a5 {[%clk 0:02:13.3]} 15. a3 {[%clk 0:01:59.5]} 15... Be7
{[%clk 0:02:12]} 16. Re1 {[%clk 0:01:56.6]} 16... a4 {[%clk 0:02:11.7]} 17. Bd2
{[%clk 0:01:49]} 17... Na5 {[%clk 0:02:09.3]} 18. Nd4 {[%clk 0:01:45.2]} 18...
Bc5 {[%clk 0:01:49.8]} 19. Bxa5 {[%clk 0:01:20.3]} 19... Rxa5 {[%clk 0:01:28.7]}
20. Nf3 {[%clk 0:01:18.4]} 20... Re8 {[%clk 0:00:59.9]} 21. h4 {[%clk
0:01:10.6]} 21... h6 {[%clk 0:00:48]} 22. e6 {[%clk 0:00:43.1]} 22... Bd6 {[%clk
0:00:20]} 23. Qd2 {[%clk 0:00:44.2]} 23... Ra8 {[%clk 0:00:15.2]} 24. Ne5 {[%clk
0:00:44]} 24... Bxe5 {[%clk 0:00:14.7]} 25. Rxe5 {[%clk 0:00:44.8]} 25... Qxh4
{[%clk 0:00:15.4]} 26. g5 {[%clk 0:00:38.2]} 26... hxg5 {[%clk 0:00:10.4]} 27.
Nxg6 {[%clk 0:00:38.6]} 27... fxg6 {[%clk 0:00:11.5]} 28. Rae1 {[%clk
0:00:34.3]} 28... g4 {[%clk 0:00:06]} 29. e7 {[%clk 0:00:30.7]} 29... c6 {[%clk
0:00:05.9]} 30. Qb4 {[%clk 0:00:27.6]} 30... Ra6 {[%clk 0:00:05.4]} 0-1

[Event "*** Titled Tuesday 3|2 Blitz"]
[Site "Chess.com"]
[Date "2016.03.01"]
[Round "6"]
[White "GianmarcoVaR"]
[Black "kikydu96"]
[Result "1-0"]
[WhiteElo "2336"]
[BlackElo "2281"]
[TimeControl "180+2"]
[EndTime "12:47:07 PST"]
[Termination "GianmarcoVaR won by checkmate"]

1. d4 {[%clk 0:02:55.9]} 1... d5 {[%clk 0:02:59.4]} 2. Nf3 {[%clk 0:02:56.4]}
2... Nf6 {[%clk 0:03:00]} 3. c4 {[%clk 0:02:57.9]} 3... c6 {[%clk 0:03:01.3]} 4.
e3 {[%clk 0:02:58.7]} 4... Bf5 {[%clk 0:03:01]} 5. Nc3 {[%clk 0:02:59.7]} 5...
a6 {[%clk 0:03:02.6]} 6. Qb3 {[%clk 0:02:59.8]} 6... Ra7 {[%clk 0:03:03.8]} 7.
a4 {[%clk 0:02:59.8]} 7... e6 {[%clk 0:03:03.4]} 8. a5 {[%clk 0:03:00]} 8...
Nbd7 {[%clk 0:03:04.3]} 9. Nh4 {[%clk 0:02:57.8]} 9... Be4 {[%clk 0:03:03.7]}
10. f3 {[%clk 0:02:56.5]} 10... dxc4 {[%clk 0:03:04.9]} 11. Bxc4 {[%clk
0:02:54.6]} 11... Bd5 {[%clk 0:03:04.6]} 12. Bxd5 {[%clk 0:02:00]} 12... cxd5
{[%clk 0:03:01.6]} 13. g3 {[%clk 0:01:56.5]} 13... Bd6 {[%clk 0:03:00.3]} 14.
O-O {[%clk 0:01:53.8]} 14... O-O {[%clk 0:02:56.9]} 15. e4 {[%clk 0:01:47.2]}
15... dxe4 {[%clk 0:02:31.3]} 16. fxe4 {[%clk 0:01:47.9]} 16... e5 {[%clk
0:02:32.7]} 17. d5 {[%clk 0:01:39.8]} 17... Bc5+ {[%clk 0:02:22.2]} 18. Kg2
{[%clk 0:01:39.1]} 18... Ng4 {[%clk 0:02:22.3]} 19. Nf5 {[%clk 0:01:12.3]} 19...
g6 {[%clk 0:02:19.9]} 20. Nh6+ {[%clk 0:01:12.7]} 20... Nxh6 {[%clk 0:02:20.2]}
21. Bxh6 {[%clk 0:01:14.2]} 21... Re8 {[%clk 0:02:21.2]} 22. d6 {[%clk
0:01:09.5]} 22... Re6 {[%clk 0:02:13.9]} 23. Rxf7 {[%clk 0:00:55.4]} 23... Kxf7
{[%clk 0:02:11.7]} 24. Rf1+ {[%clk 0:00:56.9]} 24... Nf6 {[%clk 0:02:11.9]} 25.
Bg5 {[%clk 0:00:57.8]} 25... Bxd6 {[%clk 0:01:33]} 26. Rxf6+ {[%clk 0:00:48.4]}
26... Qxf6 {[%clk 0:01:33.6]} 27. Bxf6 {[%clk 0:00:49.5]} 27... Kxf6 {[%clk
0:01:35.3]} 28. Nd5+ {[%clk 0:00:41.1]} 28... Kf7 {[%clk 0:01:35.8]} 29. Qb6
{[%clk 0:00:38.6]} 29... Bb8 {[%clk 0:01:30.3]} 30. Qd8 {[%clk 0:00:38.8]} 30...
Bd6 {[%clk 0:01:24.9]} 31. Qh8 {[%clk 0:00:26.9]} 31... Bf8 {[%clk 0:01:21.7]}
32. Qxh7+ {[%clk 0:00:15.1]} 32... Bg7 {[%clk 0:01:22.5]} 33. Qh4 {[%clk
0:00:15.8]} 33... Ra8 {[%clk 0:01:23.6]} 34. Qg4 {[%clk 0:00:11.6]} 34... Rc8
{[%clk 0:01:11.4]} 35. b4 {[%clk 0:00:08.5]} 35... Rc2+ {[%clk 0:01:11]} 36. Kh3
{[%clk 0:00:07.3]} 36... Rf2 {[%clk 0:01:02.1]} 37. Qg5 {[%clk 0:00:06.8]} 37...
Bf6 {[%clk 0:00:58.9]} 38. Qe3 {[%clk 0:00:06.2]} 38... Rc2 {[%clk 0:00:52.9]}
39. Qa7 {[%clk 0:00:06.6]} 39... Re8 {[%clk 0:00:41]} 40. Qxb7+ {[%clk
0:00:05.6]} 40... Be7 {[%clk 0:00:42.6]} 41. Qd7 {[%clk 0:00:04]} 41... Rf2
{[%clk 0:00:36.1]} 42. Nc7 {[%clk 0:00:02.6]} 42... Rh8+ {[%clk 0:00:34.1]} 43.
Kg4 {[%clk 0:00:03.5]} 43... Rf6 {[%clk 0:00:36]} 44. Qd5+ {[%clk 0:00:04.3]}
44... Kg7 {[%clk 0:00:31.5]} 45. h4 {[%clk 0:00:05.8]} 45... Rd8 {[%clk
0:00:28.8]} 46. Ne6+ {[%clk 0:00:06.6]} 46... Rxe6 {[%clk 0:00:27.9]} 47. Qxe6
{[%clk 0:00:07.7]} 47... Bf6 {[%clk 0:00:29.8]} 48. Qxa6 {[%clk 0:00:08.4]}
48... Rd4 {[%clk 0:00:30.7]} 49. Qb7+ {[%clk 0:00:09.6]} 49... Kh6 {[%clk
0:00:31.5]} 50. a6 {[%clk 0:00:11]} 50... Be7 {[%clk 0:00:28.7]} 51. a7 {[%clk
0:00:11.6]} 51... Rxb4 {[%clk 0:00:28.2]} 52. Qxb4 {[%clk 0:00:12.3]} 52... Bxb4
{[%clk 0:00:26.6]} 53. a8=Q {[%clk 0:00:14.2]} 53... Be7 {[%clk 0:00:27.4]} 54.
Qh8# {[%clk 0:00:13.2]} 1-0